Workbook

Sheet Cash Flow 4 Yrs Quarterly
C4: Cash Flow Forecast - Four Years (Quarterly)
E7: Year 1 | I7: Year 2 | M7: Year 3 | Q7: Year 4
D8: Qtr 1 | E8: Qtr 2 | F8: Qtr 3 | G8: Qtr 4 | H8: Qtr 1 | I8: Qtr 2 | J8: Qtr 3 | K8: Qtr 4 | L8: Qtr 1 | M8: Qtr 2 | N8: Qtr 3 | O8: Qtr 4 | P8: Qtr 1 | Q8: Qtr 2 | R8: Qtr 3 | S8: Qtr 4 | T8: Totals
C10: Receipts
C11: Cash sales | D11: 20,875 | E11: 42,585 | F11: 64,295 | G11: 88,280 | H11: 109,990 | I11: 132,383 | J11: 154,775 | K11: 177,168 | L11: 199,560 | M11: 221,953 | N11: 244,345 | O11: 266,738 | P11: 289,130 | Q11: 311,523 | R11: 333,915 | S11: 356,308 | T11: =SUM(D11:S11) -> 3,013,820
C12: Collections from credit sales | D12: 251 | E12: 1,420 | F12: 2,089 | G12: 3,170 | H12: 4,089 | I12: 5,032 | J12: 5,974 | K12: 6,917 | L12: 7,859 | M12: 8,802 | N12: 9,745 | O12: 10,687 | P12: 11,630 | Q12: 12,572 | R12: 13,515 | S12: 14,458 | T12: =SUM(D12:S12) -> 118,210
C13: New equity inflow | D13: 0 | E13: 0 | F13: 0 | G13: 0 | H13: 0 | I13: 0 | J13: 0 | K13: 0 | L13: 0 | M13: 0 | N13: 0 | O13: 0 | P13: 0 | Q13: 0 | R13: 0 | S13: 0 | T13: =SUM(D13:S13) -> 0
C14: Loans received | D14: 16,700 | E14: 8,350 | F14: 8,350 | G14: 8,350 | H14: 4,175 | I14: 4,175 | J14: 4,175 | K14: 4,175 | L14: 4,175 | M14: 4,175 | N14: 4,175 | O14: 4,175 | P14: 4,175 | Q14: 4,175 | R14: 4,175 | S14: 4,175 | T14: =SUM(D14:S14) -> 91,850
C15: Other | D15: 0 | E15: 0 | F15: 0 | G15: 0 | H15: 0 | I15: 0 | J15: 0 | K15: 0 | L15: 0 | M15: 0 | N15: 0 | O15: 0 | P15: 0 | Q15: 0 | R15: 0 | S15: 0 | T15: =SUM(D15:S15) -> 0
C16: Total Receipts | D16: =SUM(D11:D15) -> 37,826 | E16: 52,355 | F16: 74,734 | G16: 99,800 | H16: 118,254 | I16: 141,589 | J16: 164,924 | K16: 188,259 | L16: 211,594 | M16: 234,930 | N16: 258,265 | O16: 281,600 | P16: 304,935 | Q16: 328,270 | R16: 351,605 | S16: 374,940 | T16: =SUM(D16:K16) -> 877,742
C18: Payments
C19: Cash purchases | D19: 893 | E19: 534 | F19: 464 | G19: 393 | H19: 893 | I19: 534 | J19: 464 | K19: 393 | L19: 893 | M19: 534 | N19: 464 | O19: 393 | P19: 893 | Q19: 534 | R19: 464 | S19: 393 | T19: =SUM(D19:S19) -> 9,136
C20: Payments to creditors | D20: 2,680 | E20: 1,604 | F20: 1,391 | G20: 1,181 | H20: 2,680 | I20: 1,604 | J20: 1,391 | K20: 1,181 | L20: 2,680 | M20: 1,604 | N20: 1,391 | O20: 1,181 | P20: 2,680 | Q20: 1,604 | R20: 1,391 | S20: 1,181 | T20: 27,424
C21: Salaries and wages | D21: 14,044 | E21: 8,406 | F21: 7,292 | G21: 6,191 | H21: 14,044 | I21: 8,406 | J21: 7,292 | K21: 6,191 | L21: 14,044 | M21: 8,406 | N21: 7,292 | O21: 6,191 | P21: 14,044 | Q21: 8,406 | R21: 7,292 | S21: 6,191 | T21: 143,732
C22: Employee benefits | D22: 7,022 | E22: 4,203 | F22: 3,646 | G22: 3,095 | H22: 7,022 | I22: 4,203 | J22: 3,646 | K22: 3,095 | L22: 7,022 | M22: 4,203 | N22: 3,646 | O22: 3,095 | P22: 7,022 | Q22: 4,203 | R22: 3,646 | S22: 3,095 | T22: 71,864
C23: Payroll taxes | D23: 2,341 | E23: 1,401 | F23: 1,215 | G23: 1,032 | H23: 2,341 | I23: 1,401 | J23: 1,215 | K23: 1,032 | L23: 2,341 | M23: 1,401 | N23: 1,215 | O23: 1,032 | P23: 2,341 | Q23: 1,401 | R23: 1,215 | S23: 1,032 | T23: 23,956
C24: Rent | D24: 11,703 | E24: 7,005 | F24: 6,077 | G24: 5,158 | H24: 11,703 | I24: 7,005 | J24: 6,077 | K24: 5,158 | L24: 11,703 | M24: 7,005 | N24: 6,077 | O24: 5,158 | P24: 11,703 | Q24: 7,005 | R24: 6,077 | S24: 5,158 | T24: 119,772
C25: Utiltities | D25: 2,276 | E25: 1,362 | F25: 1,183 | G25: 1,002 | H25: 2,276 | I25: 1,362 | J25: 1,183 | K25: 1,002 | L25: 2,276 | M25: 1,362 | N25: 1,183 | O25: 1,002 | P25: 2,276 | Q25: 1,362 | R25: 1,183 | S25: 1,002 | T25: 23,292
C26: Repairs and maintenance | D26: 1,301 | E26: 779 | F26: 675 | G26: 574 | H26: 1,301 | I26: 779 | J26: 675 | K26: 574 | L26: 1,301 | M26: 779 | N26: 675 | O26: 574 | P26: 1,301 | Q26: 779 | R26: 675 | S26: 574 | T26: 13,316
C27: Insurance | D27: 2,276 | E27: 1,362 | F27: 1,183 | G27: 1,002 | H27: 2,276 | I27: 1,362 | J27: 1,183 | K27: 1,002 | L27: 2,276 | M27: 1,362 | N27: 1,183 | O27: 1,002 | P27: 2,276 | Q27: 1,362 | R27: 1,183 | S27: 1,002 | T27: 23,292
C28: Travel | D28: 2,762 | E28: 1,654 | F28: 1,435 | G28: 1,218 | H28: 2,762 | I28: 1,654 | J28: 1,435 | K28: 1,218 | L28: 2,762 | M28: 1,654 | N28: 1,435 | O28: 1,218 | P28: 2,762 | Q28: 1,654 | R28: 1,435 | S28: 1,218 | T28: 28,276
C29: Telephone | D29: 2,324 | E29: 1,392 | F29: 1,208 | G29: 1,025 | H29: 2,324 | I29: 1,392 | J29: 1,208 | K29: 1,025 | L29: 2,324 | M29: 1,392 | N29: 1,208 | O29: 1,025 | P29: 2,324 | Q29: 1,392 | R29: 1,208 | S29: 1,025 | T29: 23,796
C30: Postage | D30: 978 | E30: 584 | F30: 506 | G30: 431 | H30: 978 | I30: 584 | J30: 506 | K30: 431 | L30: 978 | M30: 584 | N30: 506 | O30: 431 | P30: 978 | Q30: 584 | R30: 506 | S30: 431 | T30: 9,996
C31: Office supplies | D31: 2,113 | E31: 1,265 | F31: 1,098 | G31: 932 | H31: 2,113 | I31: 1,265 | J31: 1,098 | K31: 932 | L31: 2,113 | M31: 1,265 | N31: 1,098 | O31: 932 | P31: 2,113 | Q31: 1,265 | R31: 1,098 | S31: 932 | T31: 21,632
C32: Advertising | D32: 15,456 | E32: 9,251 | F32: 8,025 | G32: 6,813 | H32: 15,456 | I32: 9,251 | J32: 8,025 | K32: 6,813 | L32: 15,456 | M32: 9,251 | N32: 8,025 | O32: 6,813 | P32: 15,456 | Q32: 9,251 | R32: 8,025 | S32: 6,813 | T32: 158,180
C33: Marketing/promotion | D33: 12,118 | E33: 7,254 | F33: 6,293 | G33: 5,342 | H33: 12,118 | I33: 7,254 | J33: 6,293 | K33: 5,342 | L33: 12,118 | M33: 7,254 | N33: 6,293 | O33: 5,342 | P33: 12,118 | Q33: 7,254 | R33: 6,293 | S33: 5,342 | T33: 124,028
C34: Professional fees | D34: 3,901 | E34: 2,336 | F34: 2,026 | G34: 1,719 | H34: 3,901 | I34: 2,336 | J34: 2,026 | K34: 1,719 | L34: 3,901 | M34: 2,336 | N34: 2,026 | O34: 1,719 | P34: 3,901 | Q34: 2,336 | R34: 2,026 | S34: 1,719 | T34: 39,928
C35: Training and development | D35: 58 | E35: 36 | F35: 31 | G35: 25 | H35: 58 | I35: 36 | J35: 31 | K35: 25 | L35: 58 | M35: 36 | N35: 31 | O35: 25 | P35: 58 | Q35: 36 | R35: 31 | S35: 25 | T35: 600
C36: Bank charges | D36: 0 | E36: 0 | F36: 0 | G36: 0 | H36: 0 | I36: 0 | J36: 0 | K36: 0 | L36: 0 | M36: 0 | N36: 0 | O36: 0 | P36: 0 | Q36: 0 | R36: 0 | S36: 0 | T36: 0
C37: Miscellaneous | D37: 0 | E37: 0 | F37: 0 | G37: 0 | H37: 0 | I37: 0 | J37: 0 | K37: 0 | L37: 0 | M37: 0 | N37: 0 | O37: 0 | P37: 0 | Q37: 0 | R37: 0 | S37: 0 | T37: 0
C38: Owner's drawings | D38: 0 | E38: 0 | F38: 0 | G38: 0 | H38: 0 | I38: 0 | J38: 0 | K38: 0 | L38: 0 | M38: 0 | N38: 0 | O38: 0 | P38: 0 | Q38: 0 | R38: 0 | S38: 0 | T38: 0
C39: Loan repayments | D39: 0 | E39: 0 | F39: 0 | G39: 0 | H39: 0 | I39: 0 | J39: 0 | K39: 0 | L39: 0 | M39: 0 | N39: 0 | O39: 0 | P39: 0 | Q39: 0 | R39: 0 | S39: 0 | T39: 0
C40: Tax payments | D40: 29,225 | E40: 0 | F40: 0 | G40: 0 | H40: 0 | I40: 0 | J40: 0 | K40: 0 | L40: 29,225 | M40: 0 | N40: 0 | O40: 0 | P40: 29,225 | Q40: 0 | R40: 0 | S40: 0 | T40: 87,675
C41: Capital purchases | D41: 0 | E41: 10,000 | F41: 10,000 | G41: 21,325 | H41: 26,325 | I41: 32,723 | J41: 39,120 | K41: 45,518 | L41: 51,915 | M41: 58,313 | N41: 64,710 | O41: 71,108 | P41: 77,505 | Q41: 83,903 | R41: 90,300 | S41: 96,698 | T41: 779,460
C42: Other | D42: 0 | E42: 0 | F42: 0 | G42: 0 | H42: 0 | I42: 0 | J42: 0 | K42: 0 | L42: 0 | M42: 0 | N42: 0 | O42: 0 | P42: 0 | Q42: 0 | R42: 0 | S42: 0 | T42: 0
C43: Total Payments | D43: =SUM(D19:D42) -> 113,471 | E43: 60,428 | F43: 53,748 | G43: 58,458 | H43: 110,571 | I43: 83,151 | J43: 82,868 | K43: 82,651 | L43: 165,386 | M43: 108,741 | N43: 108,458 | O43: 108,241 | P43: 190,976 | Q43: 134,331 | R43: 134,048 | S43: 133,831 | T43: =SUM(D43:K43) -> 645,345
C45: Cashflow Surplus/Deficit (-) | D45: =D16-D43 -> (75,645) | E45: (8,073) | F45: 20,986 | G45: 41,342 | H45: 7,683 | I45: 58,439 | J45: 82,056 | K45: 105,609 | L45: 46,208 | M45: 126,189 | N45: 149,807 | O45: 173,359 | P45: 113,959 | Q45: 193,939 | R45: 217,557 | S45: 241,110 | T45: =SUM(D45:K45) -> 232,397
C47: Opening Cash Balance | D47: 0 | E47: =D49 -> (75,645) | F47: (83,718) | G47: (62,732) | H47: (21,390) | I47: (13,707) | J47: 44,732 | K47: 126,788 | L47: 0 | M47: =L49 -> 46,208 | N47: 172,397 | O47: 322,204 | P47: 495,563 | Q47: 609,522 | R47: 803,461 | S47: 1,021,018
C49: Closing Cash Balance | D49: =D47+D45 -> (75,645) | E49: (83,718) | F49: (62,732) | G49: (21,390) | H49: (13,707) | I49: 44,732 | J49: 126,788 | K49: 232,397 | L49: 46,208 | M49: 172,397 | N49: 322,204 | O49: 495,563 | P49: 609,522 | Q49: 803,461 | R49: 1,021,018 | S49: 1,262,128
